{"text_format":"3","workbook":"xlsx","n_sheets":3,"sheets":["Inventaris boedelverdeling","Activa boedelverdeling","Risico boedelverdeling"],"not_rendered":{"defined_names":1},"read":"whole","date_system":"1900"}

{"sheet":"Inventaris boedelverdeling","index":0,"n_rows":45,"n_cols":35,"rows_kept":45,"merged":[[0,1,0,30],[0,31,0,39],[1,1,5,39],[6,1,6,6],[6,7,6,39],[7,1,7,6],[7,7,7,39],[9,1,9,6],[9,7,9,39],[10,1,10,6],[10,7,10,39],[11,1,11,6],[11,7,11,20],[11,21,11,26],[11,27,11,30],[11,31,11,33],[11,34,11,39],[12,1,12,6],[12,7,12,20],[12,21,12,26],[13,1,13,6],[13,7,13,20],[13,21,13,26],[14,1,14,6],[14,7,14,20],[14,21,14,26],[15,1,15,6],[17,1,17,39],[18,1,18,6],[18,7,18,12],[18,13,18,15],[18,16,18,18],[18,19,18,26],[18,27,18,31],[18,32,18,39],[19,1,19,6],[19,7,19,12],[19,13,19,15],[19,16,19,18],[19,19,19,26],[19,27,19,31],[19,32,19,39],[20,1,20,6],[20,7,20,12],[20,13,20,15],[20,16,20,18],[20,19,20,26],[20,27,20,31],[20,32,20,39],[21,1,21,6],[21,7,21,12],[21,13,21,15],[21,16,21,18],[21,19,21,26],[21,27,21,31],[21,32,21,39],[22,1,22,6],[22,7,22,12],[22,13,22,15],[22,16,22,18],[22,19,22,26],[22,27,22,31],[22,32,22,39],[23,1,23,6],[23,7,23,12],[23,13,23,15],[23,16,23,18],[23,19,23,26],[23,27,23,31],[23,32,23,39],[25,1,25,39],[26,1,26,6],[26,7,26,12],[26,13,26,18],[26,19,26,26],[26,27,26,31],[26,32,26,39],[27,1,27,6],[27,7,27,12],[27,13,27,18],[27,19,27,26],[27,27,27,31],[27,32,27,39],[28,1,28,6],[28,7,28,12],[28,13,28,18],[28,19,28,26],[28,27,28,31],[28,32,28,39],[29,1,29,6],[29,7,29,12],[29,13,29,18],[29,19,29,26],[29,27,29,31],[29,32,29,39],[30,1,30,6],[30,7,30,12],[30,13,30,18],[30,19,30,26],[30,27,30,31],[30,32,30,39],[31,1,31,6],[31,7,31,12],[31,13,31,18],[31,19,31,26],[31,27,31,31],[31,32,31,39],[33,1,33,12],[33,14,33,39],[34,1,34,12],[34,14,34,21],[34,22,34,25],[34,26,34,33],[34,34,34,39],[35,2,35,12],[35,14,35,21],[35,22,35,25],[35,26,35,33],[35,34,35,39],[36,2,36,12],[36,14,36,21],[36,22,36,25],[36,26,36,33],[36,34,36,39],[37,2,37,12],[37,14,37,21],[37,22,37,25],[37,26,37,33],[37,34,37,39],[38,2,38,12],[38,14,38,21],[38,22,38,25],[38,26,38,33],[38,34,38,39],[39,2,39,12],[39,14,39,21],[39,22,39,25],[39,26,39,33],[39,34,39,39],[40,2,40,12],[40,14,40,21],[40,22,40,25],[40,26,40,33],[40,34,40,39],[41,2,41,12],[41,14,41,21],[41,22,41,25],[41,26,41,33],[41,34,41,39],[42,2,42,12],[42,14,42,21],[42,22,42,25],[42,26,42,33],[42,34,42,38],[43,2,43,12],[43,14,43,21],[43,22,43,25],[43,26,43,33],[43,34,43,39],[44,2,44,12],[44,14,44,21],[44,22,44,25],[44,26,44,33],[44,34,44,39]]}
[]
[null,"Inventaris boedelverdeling"]
[]
[]
[]
[]
[null,"Naam van executeur(s)",{"$nulls":5},"Arnoud Wolthuis"]
[null,"Contactgegevens",{"$nulls":5},"Hoofdstraat 12, 1234 AB Aadorp"]
[]
[null,"Naam van overledene",{"$nulls":5},"August Bergquist"]
[null,"Adres",{"$nulls":5},"Hoofdstraat 6789"]
[null,"Plaats",{"$nulls":5},"Aadorp",{"$nulls":13},"Provincie",{"$nulls":5},"Limburg",{"$nulls":3},"Postcode",null,null,98052]
[null,"BSN",{"$nulls":5},"AAA-GG-SSSS",{"$nulls":13},"Beroep",{"$nulls":5},"Tandarts"]
[null,"Geboortedatum",{"$nulls":5},"1965-12-08",{"$nulls":13},"Geboorteplaats",{"$nulls":5},"Limburg"]
[null,"Overlijdensdatum",{"$nulls":5},{"$f":"TODAY()-3","v":"2022-05-09"},{"$nulls":13},"Overlijdensplaats",{"$nulls":5},"Limburg"]
[null,"Aanvullende informatie"]
[]
[null,"  Partner, kinderen en andere afhankelijken"]
[null,"Naam",{"$nulls":5},"Relatie",{"$nulls":5},"Afhankelijke",null,null,"Leeftijd",null,null,"Adres",{"$nulls":7},"Telefoonnummer",{"$nulls":4},"E-mail"]
[null,"Monica Krommenhoek",{"$nulls":5},"Persoonlijke vertegenwoordiger",{"$nulls":5},"Nee",null,null,30]
[null,"Victoria Lindqvist",{"$nulls":5},"Partner",{"$nulls":5},"Ja",null,null,35]
[null,"Alexander Martensson",{"$nulls":5},"Kind",{"$nulls":5},"Ja",null,null,12]
[]
[]
[]
[null,"Professionele adviseurs"]
[null,"Type adviseur",{"$nulls":5},"Contactpersoon",{"$nulls":5},"Bedrijf",{"$nulls":5},"Adres",{"$nulls":7},"Telefoonnummer",{"$nulls":4},"E-mail"]
[null,"Accountant"]
[null,"Advocaat/notaris"]
[null,"Overig"]
[]
[]
[]
[null,"  Controlelijst boedelverdeling",{"$nulls":12},"  Inventarissen boedelverdeling"]
[null,"    Controlelijstitems",{"$nulls":12},"Activa boedelverdeling",{"$nulls":7},"Waarde (€)",{"$nulls":3},"Passiva boedelverdeling",{"$nulls":7},"Waarde (€)"]
[null,"✔","Uiterste wilsbeschikking, testament of andere documenten",{"$nulls":11},{"$f":"'Activa boedelverdeling'!B12","v":"Bankrekeningen"},{"$nulls":7},{"$f":"'Activa boedelverdeling'!G20","v":{"v":0,"d":"€ 0.00"}},{"$nulls":3},{"$f":"'Risico boedelverdeling'!B11","v":"Hypotheken"},{"$nulls":7},{"$f":"'Risico boedelverdeling'!G18","v":{"v":0,"d":"€ 0.00"}}]
[null,"✔","Borg, huurovereenkomst en sleutels",{"$nulls":11},{"$f":"'Activa boedelverdeling'!B22","v":"Persoonlijke investeringen"},{"$nulls":7},{"$f":"'Activa boedelverdeling'!G30","v":{"v":0,"d":"€ 0.00"}},{"$nulls":3},{"$f":"'Risico boedelverdeling'!B21","v":"Persoonlijke en kredietleningen"},{"$nulls":7},{"$f":"'Risico boedelverdeling'!G28","v":{"v":0,"d":"€ 0.00"}}]
[null,"✖","Wachtwoorden voor computers en online accounts",{"$nulls":11},{"$f":"'Activa boedelverdeling'!B32","v":"Zakelijke belangen"},{"$nulls":7},{"$f":"'Activa boedelverdeling'!G40","v":{"v":0,"d":"€ 0.00"}},{"$nulls":3},{"$f":"'Risico boedelverdeling'!B31","v":"Zakelijke belangen"},{"$nulls":7},{"$f":"'Risico boedelverdeling'!G38","v":{"v":0,"d":"€ 0.00"}}]
[null,"✔","Trustfondsen",{"$nulls":11},{"$f":"'Activa boedelverdeling'!B42","v":"Onroerend goed"},{"$nulls":7},{"$f":"'Activa boedelverdeling'!G50","v":{"v":0,"d":"€ 0.00"}},{"$nulls":3},{"$f":"'Risico boedelverdeling'!B41","v":"Creditcards"},{"$nulls":7},{"$f":"'Risico boedelverdeling'!G48","v":{"v":0,"d":"€ 0.00"}}]
[null,"✔","Levensverzekering, ziekte-/ongevallenverzekering en verzekeringspolissen",{"$nulls":11},{"$f":"'Activa boedelverdeling'!B52","v":"Pensioenplannen"},{"$nulls":7},{"$f":"'Activa boedelverdeling'!G60","v":{"v":0,"d":"€ 0.00"}},{"$nulls":3},{"$f":"'Risico boedelverdeling'!B51","v":"Overige passiva"},{"$nulls":7},{"$f":"'Risico boedelverdeling'!G58","v":{"v":0,"d":"€ 0.00"}}]
[null,"✔","Financiële overzichten",{"$nulls":11},{"$f":"'Activa boedelverdeling'!B62","v":"Verzekering"},{"$nulls":7},{"$f":"'Activa boedelverdeling'!G70","v":{"v":0,"d":"€ 0.00"}}]
[null,"✔","Inkomstenbelastingaangifte voor de afgelopen drie jaar",{"$nulls":11},{"$f":"'Activa boedelverdeling'!B72","v":"Persoonlijke leningen en hypotheken"},{"$nulls":7},{"$f":"'Activa boedelverdeling'!G80","v":{"v":0,"d":"€ 0.00"}}]
[null,"✔","Geboorte- en overlijdensakte",{"$nulls":11},{"$f":"'Activa boedelverdeling'!B82","v":"Belangen in andere bezittingen en trustfondsen"},{"$nulls":7},{"$f":"'Activa boedelverdeling'!G90","v":{"v":0,"d":"€ 0.00"}}]
[null,"✖","Eigendomsakten, hypotheken en lease-afschriften",{"$nulls":11},{"$f":"'Activa boedelverdeling'!B92","v":"Persoonlijke effecten en andere activa"},{"$nulls":7},{"$f":"'Activa boedelverdeling'!G100","v":{"v":0,"d":"€ 0.00"}}]
[null,"☐","Niet-betaalde rekeningen en promessen",{"$nulls":11},"Totale activa",{"$nulls":7},{"$f":"'Activa boedelverdeling'!G10","v":{"v":0,"d":"€ 0.00"}},{"$nulls":3},"Totale passiva",{"$nulls":7},{"$f":"SUM(AI36:AN44)","v":{"v":0,"d":"€ 0.00"}}]

{"sheet":"Activa boedelverdeling","index":1,"n_rows":100,"n_cols":8,"rows_kept":100,"merged":[[0,1,0,7],[1,1,5,7],[6,1,7,7],[11,1,11,7],[12,1,12,7],[21,1,21,7],[22,1,22,7],[31,1,31,7],[32,1,32,7],[41,1,41,7],[42,1,42,7],[51,1,51,7],[52,1,52,7],[61,1,61,7],[62,1,62,7],[71,1,71,7],[72,1,72,7],[81,1,81,7],[82,1,82,7],[91,1,91,7],[92,1,92,7]]}
[]
[null,"Activa boedelverdeling"]
[]
[]
[]
[]
[null,"Gebruik dit werkblad om een inventaris van de activa boedelverdeling te maken. U moet de marktwaarde van elk onroerend-goedactivum op de datum van overlijden bepalen. Controleer alle papieren, inclusief financiële overzichten, verzekeringspolissen en belastingaangiften om marktwaarden te verkrijgen. Mogelijk moet u ook een waardebepaling krijgen van persoonlijke items (bijvoorbeeld kunstwerken, verzamelingen en antiek). Zorg ervoor dat u ook activa in het buitenland in de inventaris opneemt, zoals onroerend goed, effecten of overzeese zakelijke belangen. Mogelijk wilt u professionele hulp krijgen om een nauwkeurige marktwaarde voor activa in het buitenland te verkrijgen."]
[]
[]
[null,"Totale activa",{"$nulls":4},{"$f":"tblBankAccounts[[#Totals],[Saldo ]]+tblPersonalInvestments[[#Totals],[Marktwaarde]]+tblBusinessInterests[[#Totals],[Waarde ]]+tblRealEstate[[#Totals],[Marktprijs]]+tblPensionPlans[[#Totals],[Waarde ]]+tblInsurance[[#Totals],[Geldwaarde ]]+tblMortgages[[#Totals],[Verschuldigd saldo ]]+tblTrusts[[#Totals],[Verdelingsbedrag]]+tblOtherAssets[[#Totals],[Waarde ]]","v":{"v":0,"d":"€ 0.00"}}]
[]
[null,"Bankrekeningen"]
[null,"Maak een lijst met alle bankrekeningen, inclusief contant geld, reischeques, postwissels en rekeningen bij handelsbanken, spaarbanken, kredietverenigingen enzovoort. Noteer alle namen die op de rekening worden vermeld, en de werkelijke geldwaarde die verwijst naar het exacte geldbedrag op het moment van overlijden."]
[null,"Financiële instelling ","Adres","Telefoon","Rekeningnummer","Type rekening","Saldo ","Promessen"]
[]
[]
[]
[]
[]
[null,"Totaal",{"$nulls":4},{"$f":"SUBTOTAL(109,tblBankAccounts[[Saldo ]])","v":{"v":0,"d":"€ 0.00"}}]
[]
[null,"Persoonlijke investeringen"]
[null,"Maak een lijst met kasgeldrekeningen, prolongatierekeningen, belastingvrije spaarrekeningen, geregistreerde pensioenspaarplannen, geregistreerde pensioeninkomsten, vergrendelde pensioeninkomsten, vergrendelde pensioenspaarplannen, levensinkomsten, voorgeschreven pensioeninkomsten, geregistreerde onderwijsspaarplannen, annuïteiten enzovoort."]
[null,"Bedrijf","Adres","Telefoon","Rekeningnummer","Begunstigde","Marktwaarde","Notities"]
[]
[]
[]
[]
[]
[null,"Totaal",{"$nulls":4},{"$f":"SUBTOTAL(109,tblPersonalInvestments[Marktwaarde])","v":{"v":0,"d":"€ 0.00"}}]
[]
[null,"Zakelijke belangen"]
[null,"Maak een lijst met alle zakelijke belangen, inclusief eenmanszaken, professionele praktijken, bedrijven, partnerschappen, vennootschappen, joint ventures en andere niet-openbaar verhandelde bedrijfsentiteiten. "]
[null,"Bedrijfsnaam","Adres","Telefoon","Contactpersoon","Type","Waarde ","Notities"]
[]
[]
[]
[]
[]
[null,"Totaal",{"$nulls":4},{"$f":"SUBTOTAL(109,tblBusinessInterests[[Waarde ]])","v":{"v":0,"d":"€ 0.00"}}]
[]
[null,"Onroerend goed"]
[null,"Maak een lijst met alle onroerende goederen waarvan de Overledene en/of de overlevende partner van de Overledene eigenaar is, mede-eigenaar is of er op enigerlei wijze een belang bij heeft, inclusief onroerend goed dat is gekocht in recreatiegebieden en time-shares. Verkrijg kopieën van de eigendomsakten. Geef een beschrijving van het onroerend goed met het bijbehorende fysieke adres. Vermeld de eerlijke marktwaarde van het onroerend goed, op basis van de meest recente evaluatie door de belastinginspecteur."]
[null,"Adres","Titel gehouden door","Telefoon","Contactpersoon","Aankoopprijs","Marktprijs","Notities"]
[]
[]
[]
[]
[]
[null,"Totaal",{"$nulls":3},{"$f":"SUBTOTAL(109,tblRealEstate[Aankoopprijs])","v":{"v":0,"d":"€ 0.00"}},{"$f":"SUBTOTAL(109,tblRealEstate[Marktprijs])","v":{"v":0,"d":"€ 0.00"}}]
[]
[null,"Pensioenplannen"]
[null,"Maak een lijst met gedefinieerde uitkeringen, geldaankopen of gedefinieerde bijdragen, DPSP of groepsgebonden geregistreerde pensioenspaarplannen enzovoort."]
[null,"Bedrijf","Telefoon","Type plan","Begunstigde","E-mail","Waarde ","Notities"]
[]
[]
[]
[]
[]
[null,"Totaal",{"$nulls":4},{"$f":"SUBTOTAL(109,tblPensionPlans[[Waarde ]])","v":{"v":0,"d":"€ 0.00"}}]
[]
[null,"Verzekering"]
[null,"Vermeld trustfondsen, levensverzekeringspolissen met benoemde begunstigden en investeringsrekeningen die worden overgedragen bij overlijden, als activa die niet onder boedelverdeling vallen. Als de rechter naar deze activa vraagt, kan de executeur gemakkelijk verwijzen naar de lijst met activa die niet onder boedelverdeling vallen, en de afwezigheid ervan in de boedelverdelingsinventaris uitleggen."]
[null,"Uitgever","Polisnummer","Telefoon","Begunstigde","Nominale waarde ","Geldwaarde ","Notities"]
[]
[]
[]
[]
[]
[null,"Totaal",{"$nulls":3},{"$f":"SUBTOTAL(109,tblInsurance[[Nominale waarde ]])","v":{"v":0,"d":"€ 0.00"}},{"$f":"SUBTOTAL(109,tblInsurance[[Geldwaarde ]])","v":{"v":0,"d":"€ 0.00"}}]
[]
[null,"Persoonlijke leningen en hypotheken"]
[null,"Maak een lijst met persoonlijke leningen en hypotheken waarvan de overleden persoon de leningverstrekker was."]
[null,"Naam van lener","Adres","Telefoon","Type","Oorspronkelijk bedrag","Verschuldigd saldo ","Notities"]
[]
[]
[]
[]
[]
[null,"Totaal",{"$nulls":3},{"$f":"SUBTOTAL(109,tblMortgages[Oorspronkelijk bedrag])","v":{"v":0,"d":"€ 0.00"}},{"$f":"SUBTOTAL(109,tblMortgages[[Verschuldigd saldo ]])","v":{"v":0,"d":"€ 0.00"}}]
[]
[null,"Belangen in andere bezittingen en trustfondsen"]
[null,"Maak een lijst met activa die zijn geregistreerd in de naam van de overleden persoon en namens anderen worden bewaard (bijvoorbeeld activa die door de overleden persoon als beheerder worden bewaard of activa die door een gevolmachtigde worden bewaard)."]
[null,"Naam van bezitting/trustfonds","Naam van executeur/beheerder","Telefoon","Adres","E-mail","Verdelingsbedrag","Notities"]
[]
[]
[]
[]
[]
[null,"Totaal",{"$nulls":4},{"$f":"SUBTOTAL(109,tblTrusts[Verdelingsbedrag])","v":{"v":0,"d":"€ 0.00"}}]
[]
[null,"Persoonlijke effecten en andere activa"]
[null,"Maak een lijst met alle persoonlijke items, bijvoorbeeld auto's, sieraden, kunst, antiek, meubels. Vermeld items die mogelijk zijn bewaard in een kluis voor veilige bewaring."]
[null,"Itembeschrijving","Locatie","Telefoon","Contactpersoon","Begunstigde","Waarde ","Promessen"]
[]
[]
[]
[]
[]
[null,"Totaal",{"$nulls":4},{"$f":"SUBTOTAL(109,tblOtherAssets[[Waarde ]])","v":{"v":0,"d":"€ 0.00"}}]

{"sheet":"Risico boedelverdeling","index":2,"n_rows":58,"n_cols":8,"rows_kept":58,"merged":[[0,1,0,7],[1,1,5,7],[6,1,6,7],[10,1,10,7],[20,1,20,7],[30,1,30,7],[40,1,40,7],[50,1,50,7]]}
[]
[null,"Passiva boedelverdeling"]
[]
[]
[]
[]
[null,"Gebruik dit werkblad om de details van de passiva van het onroerend goed vast te leggen, zowel in het binnenland als buitenland. U hebt een taxatie van elke passiva op de datum van overlijden nodig."]
[]
[null,"Totale activa",{"$nulls":4},{"$f":"SUM(G18,G28,G38,G48,G58)","v":{"v":0,"d":"€ 0.00"}}]
[]
[null,"Hypotheken"]
[null,"Financiële instelling ","Adres","Telefoon","Titel gehouden door","Rekeningnummer","Saldo ","Promessen"]
[]
[]
[]
[]
[]
[null,"Totaal",{"$nulls":4},{"$f":"SUBTOTAL(109,tblBankAccounts2[[Saldo ]])","v":{"v":0,"d":"€ 0.00"}}]
[]
[]
[null,"Persoonlijke en kredietleningen"]
[null,"Financiële instelling","Adres","Telefoon"," Rekeningnummer","Type","Saldo ","Notities"]
[]
[]
[]
[]
[]
[null,"Totaal",{"$nulls":4},{"$f":"SUBTOTAL(109,tblPersonalInvestments3[[Saldo ]])","v":{"v":0,"d":"€ 0.00"}}]
[]
[]
[null,"Zakelijke belangen"]
[null,"Bedrijfsnaam","Adres"," Telefoon"," Contactpersoon","Type","Waarde ","Notities"]
[]
[]
[]
[]
[]
[null,"Totaal",{"$nulls":4},{"$f":"SUBTOTAL(109,tblBusinessInterests4[[Waarde ]])","v":{"v":0,"d":"€ 0.00"}}]
[]
[]
[null,"Creditcards"]
[null,"Creditcardmaatschappij","Bedrijfsadres","Telefoon","Kaartnummer","Vervaldatum ","Saldo ","Notities"]
[]
[]
[]
[]
[]
[null,"Totaal",{"$nulls":4},{"$f":"SUBTOTAL(109,tblRealEstate5[[Saldo ]])","v":{"v":0,"d":"€ 0.00"}}]
[]
[]
[null,"Overige passiva"]
[null,"Itembeschrijving","Locatie","Telefoon","Contactpersoon","Begunstigde","Waarde ","Promessen"]
[]
[]
[]
[]
[]
[null,"Totaal",{"$nulls":4},{"$f":"SUBTOTAL(109,tblPensionPlans6[[Waarde ]])","v":{"v":0,"d":"€ 0.00"}}]